fUST/lending_fUST_20251219
["ID","MTS","AMOUNT","RATE_DAILY","PERIOD"]
[399076687,1766104165772,-500.0,0.00019999,2]
[399076688,1766104165794,-519.32470044,0.00019999,2]
[399076689,1766104165814,-1961.61347819,0.0002,2]
[399076690,1766104165841,-45736.05717131,0.0002,2]
[399076691,1766104165863,-264.413168,0.00020187,2]
[399076692,1766104165888,-177.0,0.00020282,2]
[399076693,1766104165911,-359.49865575,0.00021024,2]
[399076694,1766104165934,-720.0,0.00021896,10]
[399076695,1766104165956,-273.73695976,0.00022,14]
[399076696,1766104165978,-204.0,0.00022282,2]
[399076697,1766104165998,-359.49865575,0.00023324,2]
[399076698,1766104166017,-1126.46477363,0.00024,30]
[399076699,1766104166041,-864.0,0.00024085,10]
[399076700,1766104166060,-267.94983324,0.00024205,2]
[399076701,1766104166081,-231.0,0.00024282,2]
[399076702,1766104166101,-359.49865575,0.00025624,2]
[399076703,1766104166120,-258.0,0.00026282,2]
[399076704,1766104166142,-1000.0,0.00026494,30]
[399076705,1766104166162,-264.413168,0.00026676,2]
[399076706,1766104166182,-359.49865575,0.00027924,2]
[399076707,1766104166201,-500.0,0.00027924,2]
[399076708,1766104166221,-309.38148493,0.00028993,2]
[399076709,1766104166247,-1000.0,0.00029143,30]
[399076710,1766104166270,-244.0,0.00029143,30]
[399076711,1766104166293,-271.00802605,0.00029143,30]
[399076712,1766104166313,-160.0,0.0003006,2]
[399076713,1766104166333,-359.8581544,0.00030224,2]
[399076714,1766104166353,-260.0,0.00030608,2]
[399076715,1766104166374,-330.16570427,0.000308,2]
[399076716,1766104168128,-122.88038282,0.000308,2]
[399076717,1766104168147,-453.04608708,0.000308,2]
[399076718,1766104168167,-453.04608708,0.000308,2]
[399076719,1766104168186,-360.0,0.00031156,2]
[399076720,1766104168206,-190.63146892,0.00031953,2]
[399076721,1766104168231,-1000.0,0.00032058,30]
[399076722,1766104168262,-492.0,0.00032058,30]
[399076723,1766104168282,-556.88667287,0.00032467,2]
[399076724,1766104168303,-264.413168,0.00033165,2]
[399076725,1766104168321,-169.5249961,0.00034553,2]
[399076726,1766104168343,-1000.0,0.00035263,30]
[399076727,1766104168367,-791.0,0.00035263,30]
[399076728,1766104168386,-990.02075177,0.00035939,2]
[399076729,1766104168407,-178.497,0.00037358,48]
[399076730,1766104168427,-184.44,0.00037358,48]
[399076731,1766104168463,-343.13664406,0.00037394,2]
[399076732,1766104168489,-88848.45551994,0.0003801,3]
[399076733,1766104203139,500.0,0.00013699,2]
[399076734,1766104203190,354.7115447,0.00014247,2]
[399076735,1766104203257,208.83236154,0.00014247,2]
[399076736,1766104207238,500.0,0.00013699,2]
[399076737,1766104207299,1000.0,0.00014247,2]
[399076738,1766104207346,1226.40905298,0.00014795,2]
[399076739,1766104207379,273.59094702,0.00014795,2]
[399076740,1766104207419,500.0,0.00015342,2]
[399076741,1766104209883,500.0,0.00013699,2]
[399076742,1766104209930,1000.0,0.00014247,2]
[399076743,1766104209984,1500.0,0.00014795,2]
[399076744,1766104210041,2000.0,0.00015342,2]
[399076745,1766104210094,1000.0,0.0001589,2]
[399076746,1766104212228,500.0,0.00013273,2]
[399076747,1766104212272,695.72066669,0.00014368,2]
[399076748,1766104212905,500.0,0.00013699,2]
[399076749,1766104212972,1000.0,0.00014247,2]
[399076750,1766104213033,530.69838629,0.00014795,2]
[399076751,1766104213068,969.30161371,0.00014795,2]
[399076752,1766104213195,500.0,0.00013699,2]
[399076753,1766104213254,1000.0,0.00014247,2]
[399076754,1766104213317,1500.0,0.00014795,2]
[399076755,1766104213673,500.0,0.00013699,2]
[399076756,1766104213729,1000.0,0.00014247,2]
[399076757,1766104213765,438.59862744,0.00013699,2]
[399076758,1766104213799,1500.0,0.00014795,2]
[399076759,1766104214142,500.0,0.00013699,2]
[399076760,1766104214177,1000.0,0.00014247,2]
[399076761,1766104214234,162.24592409,0.00014795,2]
[399076762,1766104216697,929.86383476,0.00013821,2]
[399076763,1766104216727,70.13616524,0.00013821,2]
[399076764,1766104216763,500.0,0.00013273,2]
[399076765,1766104216799,1500.0,0.00014916,2]
[399076766,1766104216834,1500.0,0.00014368,2]
[399076767,1766104216872,1000.0,0.00013821,2]
[399076768,1766104216910,500.0,0.00013273,2]
[399076769,1766104216946,1500.0,0.00014368,2]
[399076770,1766104216985,2000.0,0.00014916,2]
[399076771,1766104217023,500.0,0.00013273,2]
[399076772,1766104217062,929.87383476,0.00015464,2]
[399076773,1766104217097,1152.78398113,0.00015464,2]
[399076774,1766104217138,1000.0,0.00013821,2]
[399076775,1766104217175,1500.0,0.00014368,2]
[399076776,1766104217212,1280.94,0.00014916,2]
[399076777,1766104220123,1000.0,0.00013821,2]
[399076786,1766104232172,-462.228,0.00018,2]
[399076787,1766104232220,-387.85391896,0.00018,2]
[399076788,1766104232233,-149.91808104,0.00018,2]
[399076789,1766104232243,-275.28991896,0.0003801,3]
[399076814,1766104232829,256.61,0.00015414,2]
[399076815,1766104233261,513.22,0.00016148,2]
[399076816,1766104233661,769.83,0.00016882,2]
[399076817,1766104234071,1026.45,0.00017616,2]
[399076819,1766104238316,-1283.06,0.0001835,2]
[399076820,1766104238326,-1539.67,0.00019084,2]
[399076821,1766104238337,-1796.28,0.00019818,2]
[399076822,1766104238347,-2052.89,0.00020552,2]
[399076823,1766104238356,-2309.5,0.00021286,2]
[399076824,1766104238366,-2566.11,0.0002202,2]
[399076825,1766104238375,-12907.55249393,0.0003801,3]
[399076826,1766104238385,-5000.0,0.00039257,2]
[399076827,1766104238394,-200.0,0.00039403,120]
[399076828,1766104238403,-264.413168,0.00039654,2]
[399076829,1766104238414,-200.0,0.00039994,120]
[399076830,1766104238423,-1000.0,0.000404,33]
[399076831,1766104238433,-200.0,0.00040559,120]
[399076832,1766104238443,-500.0,0.00040653,120]
[399076833,1766104238452,-500.0,0.00040653,120]
[399076834,1766104238462,-2127.43624654,0.00040735,4]
[399076835,1766104238472,-176.95834807,0.00040765,120]
[399076836,1766104238481,-285.2,0.00040765,120]
[399076837,1766104238490,-500.81819481,0.00040765,2]
[399076838,1766104238500,-1264.0189441,0.00040765,120]
[399076839,1766104238510,-200.0,0.00042837,120]
[399076840,1766104238519,-200.0,0.00043282,120]
[399076841,1766104238529,-200.0,0.00045185,120]
[399076842,1766104238538,-200.0,0.00045523,120]
[399076843,1766104238547,-1361.0,0.00045817,2]
[399076844,1766104238556,-415.0,0.00045817,2]
[399076845,1766104238566,-264.413168,0.00046143,2]
[399076846,1766104238576,-168.81385561,0.00046169,31]
[399076847,1766104238586,-6009.65221796,0.0004617,28]
[399076848,1766104238596,-180.722276,0.0004627,60]
[399076849,1766104238606,-600.0,0.00047066,120]
[399076850,1766104238619,-1361.0,0.00048817,2]
[399076851,1766104238630,-415.0,0.00048817,2]
[399076852,1766104238651,-14506.78398011,0.00049213,2]
[399076853,1766104238666,-271.85885083,0.00049213,2]
[399076854,1766104238678,-500.0,0.00049213,2]
[399076902,1766104240621,-500.0,0.00044148,60]
[399076904,1766104240634,-100.0,0.00044148,60]
[399076906,1766104240644,-720.0,0.00048562,120]
[399076908,1766104240653,-2179.97612,0.00049213,2]
[399076974,1766104243681,-908.51,0.00048721,2]
[399076975,1766104243693,-3033.49006472,0.00048721,2]
[399076976,1766104243705,-1057.99993528,0.00048721,2]
[399076977,1766104243715,-3339.20006472,0.00049213,2]
[399076995,1766104253313,-264.40334013,0.00049213,2]
[399076996,1766104253324,-454.932072,0.00049213,2]
[399076997,1766104253337,-501.05,0.00049213,2]
[399076998,1766104253348,-287.93600393,0.00049213,2]
[399076999,1766104253360,-44782.24055291,0.00049213,2]
[399077000,1766104253370,-420.02070689,0.00049262,18]
[399077001,1766104253380,-500.0,0.00049268,18]
[399077002,1766104253390,-281.0,0.000493,29]
[399077003,1766104253400,-500.0,0.00049313,120]
[399077004,1766104253410,-500.0,0.00049313,7]
[399077005,1766104253420,-361.14448065,0.00049313,120]
[399077006,1766104253430,-500.0,0.00049313,120]
[399077007,1766104253440,-192.18115357,0.00049313,7]
[399077008,1766104253450,-500.0,0.00049313,120]
[399077009,1766104253460,-497.43163421,0.00049313,120]
[399077010,1766104253469,-500.0,0.00049314,10]
[399077011,1766104253479,-500.0,0.00049314,120]
[399077012,1766104253490,-500.0,0.00049314,120]
[399077013,1766104253500,-531.78,0.00049314,120]
[399077014,1766104253510,-500.0,0.00049315,120]
[399077015,1766104253520,-500.0,0.00049315,120]
[399077016,1766104253529,-500.0,0.00049315,120]
[399077017,1766104253539,-900.08,0.00049315,120]
[399077018,1766104253549,-835.31,0.00049315,120]
[399077019,1766104253559,-1218.64,0.00049315,120]
[399077020,1766104253568,-500.0,0.00049315,120]
[399077021,1766104253578,-500.0,0.00049315,120]
[399077022,1766104253587,-175.89354135,0.00049489,2]
[399077023,1766104253596,-500.0,0.00049589,120]
[399077024,1766104253606,-500.0,0.00049589,120]
[399077025,1766104253616,-500.0,0.00049589,120]
[399077026,1766104253625,-900.08,0.00049589,120]
[399077027,1766104253635,-835.31,0.00049589,120]
[399077028,1766104253644,-1218.64,0.00049589,120]
[399077029,1766104253654,-500.0,0.00049589,120]
[399077030,1766104253663,-500.0,0.00049589,120]
[399077031,1766104253673,-500.0,0.00049863,120]
[399077032,1766104253682,-500.0,0.00049863,120]
[399077033,1766104253691,-331.75,0.00049863,120]
[399077034,1766104253701,-900.08,0.00049863,120]
[399077035,1766104253711,-835.31,0.00049863,120]
[399077036,1766104253720,-1218.64,0.00049863,120]
[399077037,1766104253730,-500.0,0.00049863,120]
[399077038,1766104253740,-500.0,0.00049863,120]
[399077039,1766104253750,-1000.0,0.0005,120]
[399077040,1766104253760,-527.85,0.00050135,10]
[399077041,1766104253770,-220.06,0.00050135,120]
[399077042,1766104253780,-500.0,0.00050136,120]
[399077043,1766104253789,-500.0,0.00050136,120]
[399077044,1766104253799,-900.08,0.00050136,120]
[399077045,1766104253809,-835.31,0.00050136,120]
[399077046,1766104253819,-1218.64,0.00050136,120]
[399077047,1766104253828,-272.58,0.0005041,120]
[399077048,1766104253838,-500.0,0.0005041,120]
[399077049,1766104253848,-900.08,0.0005041,120]
[399077050,1766104253857,-835.31,0.0005041,120]
[399077051,1766104253867,-1218.64,0.0005041,120]
[399077052,1766104253877,-500.0,0.00050684,120]
[399077053,1766104253886,-900.08,0.00050684,120]
[399077054,1766104253895,-835.31,0.00050684,120]
[399077055,1766104253905,-1218.64,0.00050684,120]
[399077056,1766104253915,-152.32,0.000507,30]
[399077057,1766104253925,-500.0,0.00050958,120]
[399077058,1766104253934,-900.08,0.00050958,120]
[399077059,1766104253944,-835.31,0.00050958,120]
[399077060,1766104253954,-105.77621112,0.00050958,120]
[399077061,1766104263167,500.0,0.00013699,2]
[399077062,1766104263215,1000.0,0.00014247,2]
[399077063,1766104263253,0.17601887,0.00013699,2]
[399077064,1766104263292,499.82398113,0.00013699,2]
[399077065,1766104263331,1500.0,0.00014795,2]
[399077066,1766104263376,1000.0,0.00014247,2]
[399077067,1766104263412,409.24373816,0.00015342,2]
[399077068,1766104263449,1500.0,0.00014795,2]
[399077069,1766104263484,2000.0,0.00015342,2]
[399077070,1766104263520,2156.06019802,0.0001589,2]
[399077071,1766104266274,500.0,0.00013699,2]
[399077072,1766104266314,500.0,0.00013699,2]
[399077073,1766104266348,1000.0,0.00014247,2]
[399077074,1766104266384,1500.0,0.00014795,2]
[399077075,1766104266417,1500.0,0.00014795,2]
[399077076,1766104266453,524.0579623,0.0001589,2]
[399077077,1766104266487,2000.0,0.00015342,2]
[399077078,1766104266522,2475.9520377,0.0001589,2]
[399077079,1766104266551,24.0479623,0.0001589,2]
[399077080,1766104266585,2000.0,0.00015342,2]
[399077081,1766104266617,800.0,0.00015068,2]
[399077082,1766104266648,1000.0,0.00014247,2]
[399077083,1766104266682,1600.0,0.00016164,2]
[399077084,1766104266720,2505.50843032,0.00016438,2]
[399077085,1766104266761,1000.0,0.00013821,2]
[399077086,1766104266794,1070.45360738,0.0001726,2]
[399077087,1766104266822,1329.54639262,0.0001726,2]
[399077088,1766104266854,500.0,0.00013273,2]
[399077089,1766104266888,1500.0,0.00014368,2]
[399077090,1766104266925,2000.0,0.00014916,2]
[399077091,1766104266961,1345.06100972,0.00015464,2]
[399077092,1766104267510,500.0,0.00013273,2]
[399077093,1766104267559,1000.0,0.00013821,2]
[399077094,1766104267625,1500.0,0.00014368,2]
[399077095,1766104267671,325.40259766,0.00014916,2]
[399077096,1766104267703,1674.59740234,0.00014916,2]
[399077097,1766104267737,2500.0,0.00015464,2]
[399077098,1766104267780,2988.32229374,0.00016012,2]
[399077100,1766104270145,500.0,0.00013699,2]
[399077101,1766104270202,1000.0,0.00014247,2]
[399077102,1766104270250,1337.09030392,0.00014795,2]
[399077103,1766104270289,162.90969608,0.00014795,2]
[399077104,1766104270324,796.93874653,0.00015342,2]
[399077105,1766104270888,500.0,0.00013699,2]
[399077106,1766104270961,869.73313982,0.00014247,2]
[399077107,1766104273376,500.0,0.00013699,2]
[399077108,1766104273425,1000.0,0.00014247,2]
[399077109,1766104273483,1500.0,0.00014795,2]
[399077110,1766104273540,254.52714471,0.00015342,2]
[399077111,1766104273628,500.0,0.00013699,2]
[399077112,1766104273679,286.89874363,0.00014247,2]
[399077113,1766104277155,500.0,0.00013699,2]
[399077114,1766104277214,1000.0,0.00014247,2]
[399077115,1766104277277,1469.22224619,0.00014795,2]
[399077116,1766104280463,500.0,0.00013699,2]
[399077117,1766104280504,1000.0,0.00014247,2]
[399077118,1766104280556,1001.84739769,0.00014795,2]
[399077119,1766104281117,600.0,0.00014221,2]
[399077120,1766104281160,300.0,0.00013673,2]
[399077121,1766104281198,543.3750627,0.00014768,2]
[399077122,1766104281247,500.0,0.00013273,2]
[399077123,1766104281294,1000.0,0.00013821,2]
[399077124,1766104281347,1500.0,0.00014368,2]
[399077125,1766104281402,861.24419907,0.00014916,2]
[399077126,1766104283329,500.0,0.00013699,2]
[399077127,1766104283371,1000.0,0.00013821,2]
[399077128,1766104283410,693.54334054,0.00014247,2]
[399077129,1766104283441,306.45665946,0.00014247,2]
[399077130,1766104283478,500.0,0.00013273,2]
[399077131,1766104283517,1500.0,0.00014795,2]
[399077132,1766104283559,1500.0,0.00014368,2]
[399077133,1766104283597,2000.0,0.00015342,2]
[399077134,1766104283635,2500.0,0.0001589,2]
[399077135,1766104283674,1693.55334054,0.00016438,2]
[399077136,1766104283707,1306.44665946,0.00016438,2]
[399077137,1766104283744,480.74538105,0.00016986,2]
[399077138,1766104283872,500.0,0.00013273,2]
[399077139,1766104283916,1000.0,0.00013821,2]
[399077140,1766104283964,1500.0,0.00014368,2]
[399077141,1766104284017,2000.0,0.00014916,2]
[399077142,1766104284140,500.0,0.00013273,2]
[399077143,1766104284183,1000.0,0.00013821,2]
[399077144,1766104284226,1503.89643,0.00014368,2]
[399077145,1766104284408,208.92152949,0.00013273,2]
[399077146,1766104284440,291.07847051,0.00013273,2]
[399077147,1766104284476,500.0,0.00013699,2]
[399077148,1766104284511,500.0,0.00013699,2]
[399077149,1766104284546,1000.0,0.00013821,2]
[399077150,1766104284586,1000.0,0.00014247,2]
[399077151,1766104284623,1000.0,0.00014247,2]
[399077152,1766104284665,413.02445615,0.00014368,2]
[399077153,1766104284707,1500.0,0.00014795,2]
[399077154,1766104284747,1500.0,0.00014795,2]
[399077155,1766104284784,498.62905036,0.00015342,2]
[399077156,1766104284824,769.57336592,0.00015342,2]
[399077157,1766104284859,500.0,0.00013699,2]
[399077158,1766104284904,527.70465706,0.00015342,2]
[399077159,1766104284941,1472.29534294,0.00015342,2]
[399077160,1766104284982,1500.0,0.00016438,2]
[399077161,1766104285019,2500.0,0.0001589,2]
[399077162,1766104285061,1500.0,0.00014795,2]
[399077163,1766104285100,1000.0,0.00014247,2]
[399077164,1766104322912,500.0,0.00013273,2]
[399077165,1766104322979,1000.0,0.00013821,2]
[399077166,1766104323029,1500.0,0.00014368,2]
[399077167,1766104323086,500.0,0.00014916,2]
[399077168,1766104326153,1000.0,0.00013821,2]
[399077169,1766104326229,500.0,0.00013273,2]
[399077170,1766104326261,1500.0,0.00014368,2]
[399077171,1766104326299,184.80841526,0.00013699,2]
[399077172,1766104326332,2000.0,0.00014916,2]
[399077173,1766104326363,500.0,0.00013699,2]
[399077174,1766104326390,815.20158474,0.00015464,2]
[399077175,1766104326533,500.0,0.00013273,2]
[399077176,1766104326584,324.15886524,0.00013821,2]
[399077177,1766104327748,-500.0,0.00013699,2]
[399077178,1766104327776,-675.84113476,0.00013821,2]
[399077179,1766104327803,-1000.0,0.00014247,2]
[399077180,1766104327830,-1000.0,0.00014247,2]
[399077181,1766104327860,-1500.0,0.00014368,2]
[399077182,1766104328021,-98.99219509,0.00014795,2]
[399077183,1766104330757,-500.0,0.00013699,2]
[399077184,1766104330785,-1001.506718,0.00014247,2]
[399077185,1766104330814,-450.3433403,0.00014795,2]
[399077186,1766104330841,-2000.0,0.00014916,2]
[399077187,1766104330870,-411.51146814,0.00015464,2]
[399077188,1766104333857,-500.0,0.00013273,2]
[399077189,1766104333889,-1000.0,0.00013821,2]
[399077190,1766104333920,-1000.0,0.00014368,2]
[399077191,1766104333953,-1273.28694712,0.00015464,2]
[399077192,1766104333983,-278.08001483,0.00015464,2]
[399077193,1766104337177,-500.0,0.00013273,2]
[399077194,1766104337202,-61.81294504,0.00013699,2]
[399077195,1766104339194,-225.37516239,0.00013273,2]
[399077196,1766104342381,-237.0174003,0.00013273,2]
[399077197,1766104344424,-37.60743731,0.00013273,2]
[399077198,1766104344446,-159.56272533,0.00013273,2]
[399077199,1766104346506,-340.43727467,0.00013273,2]
[399077200,1766104346527,-24.30495277,0.00013699,2]
[399077207,1766104348048,-168.95212505,0.00013699,2]
[399077208,1766104350658,-192.5793027,0.00013699,2]
[399077209,1766104352023,-52.35067444,0.00013699,2]
[399077210,1766104352044,-159.72933588,0.00013699,2]
[399077214,1766104355103,-232.05768528,0.00013699,2]
[399077215,1766104357158,-108.21297884,0.00013699,2]
[399077216,1766104357180,-384.42028796,0.00013821,2]
[399077217,1766104358737,-472.11,0.00013821,2]
[399077220,1766104361352,-143.46971204,0.00013821,2]
[399077221,1766104361374,-13.98577804,0.00013821,2]
[399077222,1766104363335,-166.39,0.00013821,2]
[399077223,1766104364818,-204.67519351,0.00013821,2]
[399077224,1766104367587,-209.87063011,0.00013821,2]
[399077225,1766104369571,-193.91219098,0.00013821,2]
[399077226,1766104372141,-211.16620736,0.00013821,2]
[399077227,1766104372164,-193.66890384,0.00014247,2]
[399077228,1766104375203,-273.31777841,0.00014247,2]
[399077229,1766104378430,-166.39,0.00014247,2]
[399077230,1766104380579,-344.54440349,0.00014247,2]
[399077231,1766104382129,-22.07891426,0.00014247,2]
[399077232,1766104382150,-143.79350656,0.00014247,2]
[399077233,1766104385271,-219.06,0.00013273,2]
[399077234,1766104388509,-219.45535749,0.00013273,2]
[399077235,1766104390539,-115.55058409,0.00013273,2]
[399077236,1766104390558,-40.1229825,0.00013273,2]
[399077237,1766104392523,-233.37298445,0.00013273,2]
[399077238,1766104394731,-159.41,0.00013273,2]
[399077239,1766104396579,-67.09403305,0.00013273,2]
[399077240,1766104396600,-189.82149683,0.00013273,2]
[399077241,1766104398978,-185.6041162,0.00013273,2]
[399077242,1766104400484,-124.57438697,0.00013273,2]
[399077243,1766104400507,-160.05259437,0.00013473,2]
[399077244,1766104402471,-251.79547661,0.00013273,2]
[399077245,1766104404508,-248.20452339,0.00013273,2]
[399077246,1766104404530,-68.61552643,0.00013273,2]
[399077247,1766104406001,-431.38447357,0.00013273,2]
[399077248,1766104406025,-6.46487217,0.00013273,2]
[399077249,1766104409182,-493.53512783,0.00013273,2]
[399077250,1766104409204,-74.1277572,0.00013273,2]
[399077251,1766104414552,-209.45784387,0.00013273,2]
[399077252,1766104416692,-216.41439893,0.00013273,2]
[399077253,1766104416713,-38.02602777,0.00013273,2]
[399077254,1766104419409,-198.17877067,0.00013273,2]
[399077255,1766104420819,-151.82138089,0.00013273,2]
[399077256,1766104422225,-111.97382067,0.00013273,2]
[399077257,1766104422253,-450.99286541,0.00013273,2]
[399077258,1766104424243,-49.00713459,0.00013273,2]
[399077259,1766104424265,-104.49286541,0.00013273,2]
[399077260,1766104426335,-152.03,0.00013273,2]
[399077261,1766104429474,-180.23778501,0.00013273,2]
[399077262,1766104431466,-63.23934958,0.00013273,2]
[399077263,1766104431487,-92.9201894,0.00013273,2]
[399077264,1766104433374,-167.30126539,0.00013273,2]
[399077265,1766104436819,-215.3026743,0.00013273,2]
[399077266,1766104443069,-24.47587091,0.00013273,2]
[399077267,1766104443094,-229.75740563,0.00013473,2]
[399077268,1766104443117,-30.46404919,0.00013536,2]
[399077269,1766104446812,-220.70518861,0.00013536,2]
[399077270,1766104463799,-322.4969226,0.00013273,2]
[399077271,1766104463823,-386.46676917,0.00013273,2]
[399077272,1766104465279,-113.53323083,0.00013273,2]
[399077273,1766104465304,-48.8307622,0.00013536,2]
[399077274,1766104465335,-117.51446344,0.00013537,2]
[399077275,1766104467821,-224.86849662,0.0001314,2]
[399077276,1766104469998,-330.92244359,0.0001314,2]
[399077277,1766104470951,386.76,8.342e-05,2]
[399077278,1766104471365,773.51,8.739e-05,2]
[399077279,1766104471800,1160.27,9.136e-05,2]
[399077280,1766104472143,1547.03,9.534e-05,2]
[399077281,1766104472531,1933.78,9.931e-05,2]
[399077282,1766104472989,2320.54,0.00010328,2]
[399077283,1766104473394,2707.3,0.00010725,2]
[399077284,1766104473781,3094.06,0.00011122,2]
[399077285,1766104474192,3480.81,0.0001152,2]
[399077286,1766104474612,3867.57,0.00011917,2]
[399077297,1766104477523,-410.93456672,0.0001314,2]
[399077298,1766104479582,-223.75617013,0.0001314,2]
[399077299,1766104481976,3728.37,0.00013,2]
[399077300,1766104482001,1271.63,0.00013,2]
[399077319,1766104485956,-164.04125101,0.0001314,2]
[399077320,1766104489769,-204.52558726,0.0001314,2]
[399077321,1766104492173,-193.54,0.0001314,2]
[399077322,1766104493677,-211.11128396,0.0001314,2]
[399077323,1766104495184,-320.97959443,0.0001314,2]
[399077324,1766104500601,-273.19444444,0.0001314,2]
[399077325,1766104502704,-226.6706763,0.0001314,2]
[399077326,1766104504452,-403.31571363,0.0001314,2]
[399077327,1766104504674,617.90403954,0.00013,2]
[399077328,1766104509449,-300.00887776,0.0001314,2]
[399077329,1766104510936,-230.78617093,0.0001314,2]
[399077330,1766104512988,-186.86826813,0.0001314,2]
[399077331,1766104516988,-263.56000557,0.0001314,2]
[399077332,1766104519061,-830.91644952,0.0001314,2]
[399077333,1766104519083,-180.49431952,0.00013273,2]
[399077334,1766104524441,-319.50568048,0.00013273,2]
[399077335,1766104524463,-138.74960972,0.00013273,2]
[399077336,1766104528531,-221.52930471,0.00013273,2]
[399077337,1766104534137,-139.72108557,0.00013273,2]
[399077338,1766104534160,-148.12856678,0.00013273,2]
[399077339,1766104535818,-347.48922955,0.0001314,2]
[399077340,1766104540681,-292.18993965,0.0001314,2]
[399077341,1766104542350,-370.60461357,0.0001314,2]
[399077342,1766104545007,-226.0902851,0.0001314,2]
[399077343,1766104547955,-3763.62593213,0.0001314,2]
[399077344,1766104548770,-266.59628977,0.00013273,2]
[399077345,1766104550210,-85.27514345,0.00013273,2]
[399077346,1766104550231,-105.53288948,0.00013273,2]
[399077347,1766104552782,-159.25955032,0.00013273,2]
[399077348,1766104555125,-235.2075602,0.00013273,2]
[399077349,1766104555147,-27.49472809,0.00013273,2]
[399077350,1766104557609,-351.59117295,0.00013273,2]
[399077351,1766104558632,2472.75813574,0.00013273,2]
[399077352,1766104558654,2527.24186426,0.00013273,2]
[399077353,1766104560279,-120.91409896,0.00013273,2]
[399077354,1766104560303,-85.52675365,0.00013273,2]
[399077355,1766104561827,-261.35192524,0.00013273,2]
[399077356,1766104563562,-153.12132111,0.00013273,2]
[399077357,1766104563584,-8.07369935,0.00013273,2]
[399077358,1766104566976,-161.38,0.00013273,2]
[399077359,1766104572084,-18.2952193,0.00013273,2]
[399077360,1766104572105,-201.00088768,0.00013273,2]
[399077361,1766104576761,-298.99911232,0.00013273,2]
[399077362,1766104576783,-3.85294053,0.00013273,2]
[399077363,1766104578299,-220.57047988,0.00013273,2]
[399077364,1766104580827,-152.28097621,0.00013273,2]
[399077365,1766104582429,-123.29560338,0.00013273,2]
[399077366,1766104582453,-28.97439662,0.00013273,2]
[399077367,1766104582482,5000.0,0.00013273,2]
[399077368,1766104585013,-254.4608662,0.00013273,2]
[399077369,1766104585039,-150.0,0.00013404,2]
[399077370,1766104585064,-75.47202671,0.00013536,2]
[399077371,1766104588719,-224.52797329,0.00013536,2]
[399077372,1766104588739,-46.65435221,0.00013536,2]
[399077373,1766104590312,-164.34564779,0.00013536,2]
[399077374,1766104590336,-182.48553656,0.00013537,2]
[399077375,1766104590362,-300.0,0.00013537,2]
[399077376,1766104590384,-122.01807447,0.00013537,2]
[399077377,1766104593834,-160.5538696,0.00013537,2]
[399077378,1766104596543,-17.42805593,0.00013537,2]
[399077379,1766104596567,-300.0,0.00013537,2]
[399077380,1766104596592,-124.0805445,0.00013537,2]
[399077381,1766104598437,-175.9194555,0.00013537,2]
[399077382,1766104598460,-52.12138965,0.00013537,2]
[399077383,1766104600160,-191.26207394,0.00013537,2]
[399077384,1766104601658,-56.61653641,0.00013537,2]
[399077385,1766104601682,-271.95245198,0.00013537,2]
[399077386,1766104604415,-28.04754802,0.00013537,2]
[399077387,1766104604439,-127.82245198,0.00013537,2]
[399077388,1766104607179,-172.17754802,0.00013537,2]
[399077389,1766104607204,-30.79922266,0.00013537,2]
[399077390,1766104607938,2472.76813574,0.00013273,2]
[399077391,1766104607960,2527.23186426,0.00013273,2]